fUSD/lending_fUSD_20250906
["ID","MTS","AMOUNT","RATE_DAILY","PERIOD"]
[383850966,1757142665203,-400.0,0.00057534,120]
[383850967,1757142665212,-400.0,0.00057534,120]
[383850968,1757142665222,-400.0,0.00057534,120]
[383850969,1757142665231,-400.0,0.00057534,120]
[383850970,1757142665241,-404.65442494,0.00057534,120]
[383850971,1757142665251,-408.71842796,0.00057534,120]
[383850972,1757142665260,-400.0,0.00057534,120]
[383850973,1757142665269,-400.0,0.00057534,120]
[383850974,1757142665281,-400.0,0.00057534,120]
[383850975,1757142665290,-400.0,0.00057534,120]
[383850976,1757142665300,-402.78253489,0.00057534,120]
[383850977,1757142665310,-409.61385154,0.00057534,120]
[383850978,1757142665320,-400.0,0.00057534,120]
[383850979,1757142665332,-400.0,0.00057534,120]
[383850980,1757142665342,-403.53488498,0.00057534,120]
[383850981,1757142665351,-404.12979157,0.00057534,120]
[383850982,1757142665360,-400.0,0.00057534,120]
[383850983,1757142665369,-400.0,0.00057534,120]
[383850984,1757142665378,-400.0,0.00057534,120]
[383850985,1757142665387,-410.91430386,0.00057534,120]
[383850986,1757142665396,-414.07633949,0.00057534,120]
[383850987,1757142665407,-400.0,0.00057534,120]
[383850988,1757142665415,-414.24095518,0.00057534,120]
[383850989,1757142665425,-397.60310011,0.00057534,120]
[383850990,1757142665435,-403.06807906,0.00057534,120]
[383850991,1757142665444,-400.0,0.00057534,120]
[383850992,1757142665453,-403.60815579,0.00057534,120]
[383850993,1757142665463,-408.93759966,0.00057534,120]
[383850994,1757142665472,-407.28536078,0.00057534,120]
[383850995,1757142665484,-400.0,0.00057534,120]
[383850996,1757142665494,-400.0,0.00057534,120]
[383850997,1757142665503,-400.0,0.00057534,120]
[383850998,1757142665514,-403.66556434,0.00057534,120]
[383850999,1757142665523,-400.0,0.00057534,120]
[383851000,1757142665532,-400.0,0.00057534,120]
[383851001,1757142665542,-400.0,0.00057534,120]
[383851002,1757142665551,-400.0,0.00057534,120]
[383851003,1757142665560,-405.43954912,0.00057534,120]
[383851004,1757142665570,-400.0,0.00057534,120]
[383851005,1757142665579,-402.75730558,0.00057534,120]
[383851006,1757142665589,-400.01329038,0.00057534,120]
[383851007,1757142665598,-400.0,0.00057534,120]
[383851008,1757142665607,-402.45815397,0.00057534,120]
[383851009,1757142665617,-403.64222418,0.00057534,120]
[383851010,1757142665627,-404.58007112,0.00057534,120]
[383851011,1757142665636,-400.0,0.00057534,120]
[383851012,1757142665645,-400.0,0.00057534,120]
[383851013,1757142665655,-400.0,0.00057534,120]
[383851014,1757142665665,-403.37113488,0.00057534,120]
[383851015,1757142665675,-403.67280807,0.00057534,120]
[383851016,1757142665685,-400.0,0.00057534,120]
[383851017,1757142665695,-400.0,0.00057534,120]
[383851018,1757142665705,-400.0,0.00057534,120]
[383851019,1757142665715,-400.0,0.00057534,120]
[383851020,1757142665724,-400.0,0.00057534,120]
[383851021,1757142665733,-400.0,0.00057534,120]
[383851022,1757142665743,-400.0,0.00057534,120]
[383851023,1757142665752,-400.0,0.00057534,120]
[383851024,1757142665762,-408.75328933,0.00057534,120]
[383851025,1757142665771,-402.72516846,0.00057534,120]
[383851026,1757142665780,-300.0,0.00057534,120]
[383851027,1757142665790,-404.84278006,0.00057534,120]
[383851028,1757142665799,-400.0,0.00057534,120]
[383851029,1757142665809,-404.53159579,0.00057534,120]
[383851030,1757142665818,-400.0,0.00057534,120]
[383851031,1757142665827,-400.0,0.00057534,120]
[383851032,1757142665838,-400.0,0.00057534,120]
[383851033,1757142665848,-405.55323723,0.00057534,120]
[383851034,1757142665857,-403.41215862,0.00057534,120]
[383851035,1757142665867,-400.0,0.00057534,120]
[383851036,1757142665876,-406.34210222,0.00057534,120]
[383851037,1757142665886,-405.81759182,0.00057534,120]
[383851038,1757142665895,-400.0,0.00057534,120]
[383851039,1757142665905,-327.72772449,0.00057534,120]
[383851040,1757142665915,-400.0,0.00057534,120]
[383851041,1757142665924,-403.33714915,0.00057534,120]
[383851042,1757142665933,-403.39875315,0.00057534,120]
[383851043,1757142665942,-400.0,0.00057534,120]
[383851044,1757142665951,-407.73200622,0.00057534,120]
[383851045,1757142665960,-400.0,0.00057534,120]
[383851046,1757142665969,-400.0,0.00057534,120]
[383851047,1757142665979,-400.0,0.00057534,120]
[383851048,1757142665988,-456.67573238,0.00057534,120]
[383851049,1757142665998,-410.11675916,0.00057534,120]
[383851050,1757142666007,-400.0,0.00057534,120]
[383851051,1757142666016,-400.0,0.00057534,120]
[383851052,1757142666025,-400.0,0.00057534,120]
[383851053,1757142666035,-485.66,0.00057534,120]
[383851054,1757142666044,-400.0,0.00057534,120]
[383851055,1757142666053,-402.48242597,0.00057534,120]
[383851056,1757142666062,-400.0,0.00057534,120]
[383851057,1757142666072,-400.0,0.00057534,120]
[383851058,1757142666081,-413.73163377,0.00057534,120]
[383851059,1757142666090,-400.0,0.00057534,120]
[383851060,1757142666100,-400.0,0.00057534,120]
[383851061,1757142666109,-251.249865,0.00057534,120]
[383851062,1757142666118,-400.0,0.00057534,120]
[383851063,1757142666127,-614.07,0.00057534,120]
[383851064,1757142666136,-412.92522518,0.00057534,120]
[383851065,1757142666145,-400.0,0.00057534,120]
[383851066,1757142666154,-400.0,0.00057534,120]
[383851067,1757142666163,-417.00082783,0.00057534,120]
[383851068,1757142666173,-400.0,0.00057534,120]
[383851069,1757142666183,-400.0,0.00057534,120]
[383851070,1757142666192,-518.32768856,0.00057534,120]
[383851071,1757142666201,-400.0,0.00057534,120]
[383851072,1757142666211,-400.0,0.00057534,120]
[383851073,1757142666221,-404.13295678,0.00057534,120]
[383851074,1757142666231,-405.19622723,0.00057534,120]
[383851075,1757142666240,-400.0,0.00057534,120]
[383851076,1757142666249,-245.349896,0.00057534,120]
[383851077,1757142666259,-412.72673479,0.00057534,120]
[383851078,1757142666267,-400.0,0.00057534,120]
[383851079,1757142666277,-400.0,0.00057534,120]
[383851080,1757142666286,-400.0,0.00057534,120]
[383851081,1757142666296,-402.95386319,0.00057534,120]
[383851082,1757142666306,-400.0,0.00057534,120]
[383851083,1757142666316,-423.63617551,0.00057534,120]
[383851084,1757142666326,-400.0,0.00057534,120]
[383851085,1757142666336,-400.0,0.00057534,120]
[383851086,1757142666346,-410.98099353,0.00057534,120]
[383851087,1757142666356,-151.0,0.00057534,120]
[383851088,1757142666367,-400.0,0.00057534,120]
[383851089,1757142666378,-403.90813783,0.00057534,120]
[383851090,1757142666389,-432.01272543,0.00057534,120]
[383851091,1757142666399,-400.0,0.00057534,120]
[383851092,1757142666410,-400.0,0.00057534,120]
[383851093,1757142666421,-426.89476151,0.00057534,120]
[383851094,1757142666432,-406.22171441,0.00057534,120]
[383851095,1757142666443,-239.524423,0.00057534,120]
[383851096,1757142666453,-500.0,0.00057534,120]
[383851097,1757142666463,-509.85486218,0.00057534,120]
[383851098,1757142666472,-400.0,0.00057534,120]
[383851099,1757142666487,-400.0,0.00057534,120]
[383851100,1757142666496,-400.0,0.00057534,120]
[383851101,1757142666505,-400.0,0.00057534,120]
[383851102,1757142666515,-404.21936398,0.00057534,120]
[383851103,1757142666524,-192.26024,0.00057534,120]
[383851104,1757142666533,-400.0,0.00057534,120]
[383851105,1757142666542,-403.35059751,0.00057534,120]
[383851106,1757142666552,-400.0,0.00057534,120]
[383851107,1757142666561,-460.0,0.00057534,120]
[383851108,1757142666570,-400.0,0.00057534,120]
[383851109,1757142666580,-192.26024,0.00057534,120]
[383851110,1757142666589,-400.0,0.00057534,120]
[383851111,1757142666599,-255.42647741,0.00057534,120]
[383851112,1757142666608,-400.0,0.00057534,120]
[383851113,1757142666618,-192.26024,0.00057534,120]
[383851114,1757142666627,-192.26024,0.00057534,120]
[383851115,1757142666637,-400.0,0.00057534,120]
[383851116,1757142666647,-400.0,0.00057534,120]
[383851117,1757142666656,-441.21,0.00057534,120]
[383851118,1757142666665,-411.17181249,0.00057534,120]
[383851119,1757142666676,-400.0,0.00057534,120]
[383851120,1757142666685,-405.72508294,0.00057534,120]
[383851121,1757142666695,-400.0,0.00057534,120]
[383851122,1757142666704,-400.0,0.00057534,120]
[383851123,1757142666713,-400.0,0.00057534,120]
[383851124,1757142666723,-400.0,0.00057534,120]
[383851125,1757142666732,-400.0,0.00057534,120]
[383851126,1757142666880,-151.0,0.00057534,120]
[383851127,1757142666890,-400.0,0.00057534,120]
[383851128,1757142666900,-404.39668077,0.00057534,120]
[383851129,1757142666909,-400.0,0.00057534,120]
[383851130,1757142666919,-400.0,0.00057534,120]
[383851131,1757142666929,-178.14949265,0.00057534,120]
[383851132,1757142666939,-400.0,0.00057534,120]
[383851133,1757142666948,-400.0,0.00057534,120]
[383851134,1757142666957,-400.0,0.00057534,120]
[383851135,1757142666966,-400.0,0.00057534,120]
[383851136,1757142666975,-400.0,0.00057534,120]
[383851137,1757142666985,-400.0,0.00057534,120]
[383851138,1757142666994,-418.57962963,0.00057534,120]
[383851139,1757142667003,-404.04749407,0.00057534,120]
[383851140,1757142667013,-184.492926,0.00057534,120]
[383851141,1757142667023,-400.0,0.00057534,120]
[383851142,1757142667032,-400.0,0.00057534,120]
[383851143,1757142667041,-400.0,0.00057534,120]
[383851144,1757142667051,-159.492881,0.00057534,120]
[383851145,1757142667060,-400.0,0.00057534,120]
[383851146,1757142667068,-151.0,0.00057534,120]
[383851147,1757142667078,-402.90444311,0.00057534,120]
[383851148,1757142667087,-400.0,0.00057534,120]
[383851149,1757142667096,-400.0,0.00057534,120]
[383851150,1757142667105,-401.28505849,0.00057534,120]
[383851151,1757142667114,-151.0,0.00057534,120]
[383851152,1757142667123,-151.0,0.00057534,120]
[383851153,1757142667132,-403.22886629,0.00057534,120]
[383851154,1757142667141,-400.0,0.00057534,120]
[383851155,1757142667150,-400.0,0.00057534,120]
[383851156,1757142667160,-400.0,0.00057534,120]
[383851157,1757142667169,-151.0,0.00057534,120]
[383851158,1757142667178,-400.0,0.00057534,120]
[383851159,1757142667188,-565.55,0.00057534,120]
[383851160,1757142667197,-404.375626,0.00057534,120]
[383851161,1757142667206,-400.0,0.00057534,120]
[383851162,1757142667216,-400.0,0.00057534,120]
[383851163,1757142667225,-400.0,0.00057534,120]
[383851164,1757142667234,-402.13537098,0.00057534,120]
[383851165,1757142667244,-400.0,0.00057534,120]
[383851166,1757142667253,-400.0,0.00057534,120]
[383851167,1757142667263,-400.0,0.00057534,120]
[383851168,1757142667272,-400.0,0.00057534,120]
[383851169,1757142667282,-402.55440819,0.00057534,120]
[383851170,1757142667291,-400.0,0.00057534,120]
[383851171,1757142667301,-414.06395148,0.00057534,120]
[383851172,1757142667310,-400.0,0.00057534,120]
[383851173,1757142667319,-261.97326776,0.00057534,120]
[383851174,1757142667329,-405.02008914,0.00057534,120]
[383851175,1757142667338,-400.0,0.00057534,120]
[383851176,1757142667348,-413.79841565,0.00057534,120]
[383851177,1757142667357,-400.0,0.00057534,120]
[383851178,1757142667367,-400.0,0.00057534,120]
[383851179,1757142667376,-400.0,0.00057534,120]
[383851180,1757142667386,-151.0,0.00057534,2]
[383851181,1757142667395,-151.0,0.00057534,120]
[383851182,1757142667404,-400.0,0.00057534,120]
[383851183,1757142667414,-400.0,0.00057534,120]
[383851184,1757142667423,-406.6169045,0.00057534,120]
[383851185,1757142667433,-535.93993681,0.00057534,120]
[383851186,1757142667442,-400.0,0.00057534,120]
[383851187,1757142667452,-151.0,0.00057534,2]
[383851188,1757142667463,-151.0,0.00057534,120]
[383851189,1757142667473,-400.0,0.00057534,120]
[383851190,1757142667487,-151.0,0.00057534,120]
[383851191,1757142667496,-408.00308416,0.00057534,120]
[383851192,1757142667506,-405.19649157,0.00057534,120]
[383851193,1757142667515,-400.0,0.00057534,120]
[383851194,1757142667525,-400.0,0.00057534,120]
[383851195,1757142667535,-495.62,0.00057534,120]
[383851196,1757142667544,-151.0,0.00057534,120]
[383851197,1757142667554,-400.0,0.00057534,120]
[383851198,1757142667564,-151.0,0.00057534,120]
[383851199,1757142667573,-405.17682422,0.00057534,120]
[383851200,1757142667582,-405.47490244,0.00057534,120]
[383851201,1757142667592,-402.03490833,0.00057534,120]
[383851202,1757142667601,-151.0,0.00057534,120]
[383851203,1757142667611,-400.0,0.00057534,120]
[383851204,1757142667620,-400.0,0.00057534,120]
[383851205,1757142667630,-402.6974271,0.00057534,120]
[383851206,1757142667639,-400.0,0.00057534,120]
[383851207,1757142667649,-151.0,0.00057534,120]
[383851208,1757142667659,-151.0,0.00057534,120]
[383851209,1757142667668,-400.0,0.00057534,120]
[383851210,1757142667679,-414.52855262,0.00057534,120]
[383851211,1757142667689,-400.0,0.00057534,120]
[383851212,1757142667698,-400.0,0.00057534,120]
[383851213,1757142667708,-400.0,0.00057534,120]
[383851214,1757142667717,-151.0,0.00057534,60]
[383851215,1757142667727,-400.0,0.00057534,120]
[383851216,1757142667737,-400.0,0.00057534,120]
[383851217,1757142667746,-400.0,0.00057534,120]
[383851218,1757142667755,-400.0,0.00057534,120]
[383851219,1757142667765,-400.0,0.00057534,120]
[383851220,1757142667775,-400.0,0.00057534,120]
[383851221,1757142667784,-411.71948139,0.00057534,120]
[383851222,1757142667794,-233.513658,0.00057534,120]
[383851223,1757142667803,-403.52129064,0.00057534,120]
[383851224,1757142667813,-400.0,0.00057534,120]
[383851225,1757142667822,-400.0,0.00057534,120]
[383851226,1757142667832,-400.0,0.00057534,120]
[383851227,1757142667842,-402.63800007,0.00057534,120]
[383851228,1757142667851,-400.0,0.00057534,120]
[383851229,1757142667861,-400.0,0.00057534,120]
[383851230,1757142667871,-290.83646894,0.00057534,120]
[383851231,1757142667880,-400.0,0.00057534,120]
[383851232,1757142667889,-405.13459365,0.00057534,120]
[383851233,1757142667898,-400.0,0.00057534,120]
[383851234,1757142667908,-400.0,0.00057534,120]
[383851235,1757142667917,-406.50564395,0.00057534,120]
[383851236,1757142667927,-400.0,0.00057534,120]
[383851237,1757142667937,-400.0,0.00057534,120]
[383851238,1757142667946,-400.0,0.00057534,120]
[383851239,1757142667955,-400.0,0.00057534,120]
[383851240,1757142667965,-403.59488019,0.00057534,120]
[383851241,1757142667976,-400.0,0.00057534,120]
[383851242,1757142667988,-400.0,0.00057534,120]
[383851243,1757142668000,-400.0,0.00057534,120]
[383851244,1757142668010,-400.0,0.00057534,120]
[383851245,1757142668020,-401.96923323,0.00057534,120]
[383851246,1757142668030,-151.0,0.00057534,120]
[383851247,1757142668040,-402.91787975,0.00057534,120]
[383851248,1757142668051,-407.98065568,0.00057534,120]
[383851249,1757142668060,-400.0,0.00057534,120]
[383851250,1757142668071,-400.0,0.00057534,120]
[383851251,1757142668080,-534.92,0.00057534,120]
[383851252,1757142668091,-400.0,0.00057534,120]
[383851253,1757142668102,-400.0,0.00057534,120]
[383851254,1757142668113,-400.0,0.00057534,120]
[383851255,1757142668122,-400.0,0.00057534,120]
[383851256,1757142668132,-400.0,0.00057534,120]
[383851257,1757142668141,-151.0,0.00057534,120]
[383851258,1757142668152,-400.0,0.00057534,120]
[383851259,1757142668161,-400.0,0.00057534,120]
[383851260,1757142668171,-400.0,0.00057534,120]
[383851261,1757142668181,-151.0,0.00057534,120]
[383851262,1757142668190,-405.78676992,0.00057534,120]
[383851263,1757142668200,-407.06728466,0.00057534,120]
[383851264,1757142668210,-400.0,0.00057534,30]
[383851265,1757142668219,-151.0,0.00057534,120]
[383851266,1757142668229,-400.0,0.00057534,120]
[383851267,1757142668239,-408.61855956,0.00057534,120]
[383851268,1757142668248,-400.0,0.00057534,120]
[383851269,1757142668258,-400.0,0.00057534,120]
[383851270,1757142668267,-400.0,0.00057534,120]
[383851271,1757142668276,-400.0,0.00057534,120]
[383851272,1757142668286,-400.0,0.00057534,120]
[383851273,1757142668295,-400.0,0.00057534,120]
[383851274,1757142668305,-400.0,0.00057534,120]
[383851275,1757142668314,-400.0,0.00057534,120]
[383851276,1757142668323,-155.947208,0.00057534,120]
[383851277,1757142668332,-400.0,0.00057534,120]
[383851278,1757142668341,-407.44617229,0.00057534,120]
[383851279,1757142668350,-152.831687,0.00057534,120]
[383851280,1757142668360,-400.0,0.00057534,120]
[383851281,1757142668369,-402.00549496,0.00057534,120]
[383851282,1757142668378,-407.36414999,0.00057534,120]
[383851283,1757142668387,-400.0,0.00057534,120]
[383851284,1757142668396,-400.0,0.00057534,120]
[383851285,1757142668405,-400.0,0.00057534,120]
[383851286,1757142668414,-400.0,0.00057534,120]
[383851287,1757142668425,-151.0,0.00057534,120]
[383851288,1757142668435,-404.47733088,0.00057534,120]
[383851289,1757142668443,-400.0,0.00057534,120]
[383851290,1757142668453,-404.60954096,0.00057534,120]
[383851291,1757142668463,-402.66432263,0.00057534,120]
[383851292,1757142668472,-389.82046215,0.00057534,120]
[383851293,1757142668484,-151.0,0.00057534,120]
[383851294,1757142668494,-400.0,0.00057534,120]
[383851295,1757142668503,-400.0,0.00057534,120]
[383851296,1757142668512,-151.0,0.00057534,120]
[383851297,1757142668521,-400.0,0.00057534,120]
[383851298,1757142668531,-151.0,0.00057534,120]
[383851299,1757142668540,-404.91849629,0.00057534,120]
[383851300,1757142668549,-509.52337726,0.00057534,120]
[383851301,1757142668559,-400.0,0.00057534,120]
[383851302,1757142668568,-400.0,0.00057534,120]
[383851303,1757142668577,-151.0,0.00057534,120]
[383851304,1757142668587,-400.0,0.00057534,120]
[383851305,1757142668595,-151.0,0.00057534,120]
[383851306,1757142668605,-400.0,0.00057534,120]
[383851307,1757142668614,-151.0,0.00057534,120]
[383851308,1757142668623,-700.503592,0.00057534,120]
[383851309,1757142668632,-400.0,0.00057534,120]
[383851310,1757142668642,-151.0,0.00057534,120]
[383851311,1757142668652,-400.0,0.00057534,120]
[383851312,1757142668661,-151.0,0.00057534,120]
[383851313,1757142668670,-402.12571196,0.00057534,120]
[383851314,1757142668680,-400.0,0.00057534,120]
[383851315,1757142668689,-408.84855684,0.00057534,120]
[383851316,1757142668698,-700.503592,0.00057534,120]
[383851317,1757142668707,-151.0,0.00057534,120]
[383851318,1757142668716,-403.94670814,0.00057534,120]
[383851319,1757142668726,-400.0,0.00057534,120]
[383851320,1757142668735,-421.11087612,0.00057534,120]
[383851321,1757142668744,-700.503592,0.00057534,120]
[383851322,1757142668754,-400.0,0.00057534,120]
[383851323,1757142668763,-400.0,0.00057534,120]
[383851324,1757142668772,-436.05073559,0.00057534,120]
[383851325,1757142668781,-700.503592,0.00057534,120]
[383851326,1757142668791,-400.0,0.00057534,120]
[383851327,1757142668800,-445.13368823,0.00057534,120]
[383851328,1757142668810,-407.0551277,0.00057534,120]
[383851329,1757142668819,-400.0,0.00057534,120]
[383851330,1757142668829,-400.0,0.00057534,120]
[383851331,1757142668838,-400.0,0.00057534,120]
[383851332,1757142668847,-405.76565771,0.00057534,120]
[383851333,1757142668856,-400.0,0.00057534,120]
[383851334,1757142668866,-400.0,0.00057534,120]
[383851335,1757142668875,-400.0,0.00057534,120]
[383851336,1757142668884,-400.0,0.00057534,120]
[383851337,1757142668893,-400.0,0.00057534,120]
[383851338,1757142668903,-400.0,0.00057534,120]
[383851339,1757142668912,-400.0,0.00057534,120]
[383851340,1757142668921,-404.49899369,0.00057534,120]
[383851341,1757142668930,-400.0,0.00057534,120]
[383851342,1757142668939,-402.03338569,0.00057534,120]
[383851343,1757142668949,-400.0,0.00057534,120]
[383851344,1757142668958,-400.0,0.00057534,120]
[383851345,1757142668968,-400.0,0.00057534,120]
[383851346,1757142668978,-400.0,0.00057534,120]
[383851347,1757142668988,-425.13,0.00057534,120]
[383851348,1757142669129,-400.0,0.00057534,120]
[383851349,1757142669139,-405.97856097,0.00057534,120]
[383851350,1757142669148,-400.0,0.00057534,120]
[383851351,1757142669157,-439.4975388,0.00057534,120]
[383851352,1757142669167,-400.0,0.00057534,120]
[383851353,1757142669176,-400.0,0.00057534,120]
[383851354,1757142669186,-400.0,0.00057534,120]
[383851355,1757142669196,-400.0,0.00057534,120]
[383851356,1757142669206,-400.0,0.00057534,120]
[383851357,1757142669216,-400.0,0.00057534,120]
[383851358,1757142669226,-425.26996419,0.00057534,120]
[383851359,1757142669235,-400.0,0.00057534,120]
[383851360,1757142669244,-412.41316081,0.00057534,120]
[383851361,1757142669254,-400.0,0.00057534,120]
[383851362,1757142669264,-400.0,0.00057534,120]
[383851363,1757142669273,-400.0,0.00057534,120]
[383851364,1757142669282,-198.71079911,0.00057534,120]
[383851365,1757142669291,-400.0,0.00057534,120]
[383851366,1757142669300,-452.6228682,0.00057534,120]
[383851367,1757142669310,-403.70246701,0.00057534,120]
[383851368,1757142669319,-404.30815563,0.00057534,120]
[383851369,1757142669329,-400.0,0.00057534,120]
[383851370,1757142669339,-405.23697851,0.00057534,30]
[383851371,1757142669348,-402.89456553,0.00057534,120]
[383851372,1757142669357,-400.0,0.00057534,120]
[383851373,1757142669366,-407.57459227,0.00057534,120]
[383851374,1757142669375,-400.0,0.00057534,120]
[383851375,1757142669384,-400.0,0.00057534,120]
[383851376,1757142669394,-400.0,0.00057534,120]
[383851377,1757142669403,-151.0,0.00057534,120]
[383851378,1757142669413,-400.0,0.00057534,7]
[383851379,1757142669422,-156.618441,0.00057534,120]
[383851380,1757142669432,-151.0,0.00057534,120]
[383851381,1757142669442,-400.0,0.00057534,120]
[383851382,1757142669452,-400.0,0.00057534,120]
[383851383,1757142669462,-402.56352171,0.00057534,120]
[383851384,1757142669472,-400.0,0.00057534,120]
[383851385,1757142669485,-400.0,0.00057534,120]
[383851386,1757142669495,-400.0,0.00057534,120]
[383851387,1757142669504,-400.0,0.00057534,120]
[383851388,1757142669514,-151.0,0.00057534,120]
[383851389,1757142669523,-400.0,0.00057534,120]
[383851390,1757142669533,-400.0,0.00057534,120]
[383851391,1757142669543,-400.0,0.00057534,120]
[383851392,1757142669554,-400.0,0.00057534,120]
[383851393,1757142669565,-400.0,0.00057534,120]
[383851394,1757142669575,-400.0,0.00057534,120]
[383851395,1757142669584,-400.0,0.00057534,120]
[383851396,1757142669593,-438.19010608,0.00057534,120]
[383851397,1757142669602,-400.0,0.00057534,120]
[383851398,1757142669612,-400.0,0.00057534,120]
[383851399,1757142669621,-186.71383,0.00057534,120]
[383851400,1757142669631,-400.0,0.00057534,120]
[383851401,1757142669640,-400.0,0.00057534,120]
[383851402,1757142669650,-400.0,0.00057534,120]
[383851403,1757142669660,-400.0,0.00057534,120]
[383851404,1757142669669,-400.0,0.00057534,120]
[383851405,1757142669678,-400.0,0.00057534,120]
[383851406,1757142669687,-400.0,0.00057534,120]
[383851407,1757142669697,-400.0,0.00057534,120]
[383851408,1757142669706,-400.0,0.00057534,120]
[383851409,1757142669716,-400.0,0.00057534,120]
[383851410,1757142669725,-400.0,0.00057534,120]
[383851411,1757142669735,-400.0,0.00057534,120]
[383851412,1757142669744,-400.0,0.00057534,120]
[383851413,1757142669754,-400.0,0.00057534,120]
[383851414,1757142669764,-400.0,0.00057534,120]
[383851415,1757142669773,-400.0,0.00057534,120]
[383851416,1757142669783,-405.90243611,0.00057534,120]
[383851417,1757142669792,-400.0,0.00057534,120]
[383851418,1757142669802,-400.0,0.00057534,120]
[383851419,1757142669811,-400.0,0.00057534,120]
[383851420,1757142669821,-400.0,0.00057534,120]
[383851421,1757142669830,-279.98008788,0.00057534,120]
[383851422,1757142669840,-400.0,0.00057534,120]
[383851423,1757142669849,-400.0,0.00057534,120]
[383851424,1757142669860,-403.38940914,0.00057534,120]
[383851425,1757142669869,-400.0,0.00057534,120]
[383851426,1757142669879,-400.0,0.00057534,120]
[383851427,1757142669888,-400.0,0.00057534,120]
[383851428,1757142669897,-400.0,0.00057534,120]
[383851429,1757142669907,-400.0,0.00057534,120]
[383851430,1757142669916,-400.0,0.00057534,120]
[383851431,1757142669926,-400.0,0.00057534,120]
[383851432,1757142669935,-400.0,0.00057534,120]
[383851433,1757142669946,-400.0,0.00057534,120]
[383851434,1757142669956,-400.0,0.00057534,120]
[383851435,1757142669966,-400.0,0.00057534,120]
[383851436,1757142669975,-400.0,0.00057534,120]
[383851437,1757142669985,-400.0,0.00057534,120]
[383851438,1757142669994,-400.0,0.00057534,120]
[383851439,1757142670003,-400.0,0.00057534,120]
[383851440,1757142670015,-400.0,0.00057534,120]
[383851441,1757142670025,-400.0,0.00057534,120]
[383851442,1757142670036,-400.0,0.00057534,120]
[383851443,1757142670047,-400.0,0.00057534,120]
[383851444,1757142670056,-400.0,0.00057534,120]
[383851445,1757142670066,-400.0,0.00057534,120]
[383851446,1757142670076,-400.0,0.00057534,120]
[383851447,1757142670086,-400.0,0.00057534,120]
[383851448,1757142670096,-401.91808375,0.00057534,120]
[383851449,1757142670105,-400.0,0.00057534,120]
[383851450,1757142670115,-400.0,0.00057534,120]
[383851451,1757142670124,-501.68,0.00057534,120]
[383851452,1757142670133,-400.0,0.00057534,120]
[383851453,1757142670143,-400.0,0.00057534,120]
[383851454,1757142670153,-400.0,0.00057534,120]
[383851455,1757142670163,-400.0,0.00057534,120]
[383851456,1757142670172,-400.0,0.00057534,120]
[383851457,1757142670181,-400.0,0.00057534,120]
[383851458,1757142670191,-400.0,0.00057534,120]
[383851459,1757142670200,-400.0,0.00057534,120]
[383851460,1757142670209,-442.60206615,0.00057534,120]
[383851461,1757142670219,-400.0,0.00057534,120]
[383851462,1757142670228,-400.0,0.00057534,120]
[383851463,1757142670238,-403.11848957,0.00057534,120]
[383851464,1757142670247,-400.0,0.00057534,120]
[383851465,1757142670257,-400.0,0.00057534,120]